[Event "Titled Tuesday Blitz February 07 Late 2023"]
[White "Vasquez Schroeder, Rodrigo"]
[Black "reevecanada"]
[WhiteFideId "3400042"]
[WhiteElo "2524"]
[BlackElo "2474"]
[Result "1-0"]
[Round "02"]
[TimeControl "180+2"]
[Date "2023.02.07"]
[WhiteClock "0:01:17"]
[BlackClock "0:01:53"]

1. d4 {[%clk 0:02:35]}  Nf6 {[%clk 0:02:56]} 2. Nf3 {[%clk 0:02:31]}  g6 {[%clk 0:02:56]} 3. c4 {[%clk 0:02:28]}  Bg7 {[%clk 0:02:56]} 4. Nc3 {[%clk 0:02:28]}  d5 {[%clk 0:02:55]} 5. cxd5 {[%clk 0:02:28]}  Nxd5 {[%clk 0:02:56]} 6. e4 {[%clk 0:02:28]}  Nxc3 {[%clk 0:02:57]} 7. bxc3 {[%clk 0:02:29]}  c5 {[%clk 0:02:57]} 8. h3 {[%clk 0:02:29]}  O-O {[%clk 0:02:57]} 9. Be2 {[%clk 0:02:27]}  Nc6 {[%clk 0:02:58]} 10. Be3 {[%clk 0:02:27]}  Qa5 {[%clk 0:02:58]} 11. Bd2 {[%clk 0:02:27]}  Qd8 {[%clk 0:02:56]} 12. d5 {[%clk 0:02:27]}  Ne5 {[%clk 0:02:55]} 13. Nxe5 {[%clk 0:02:27]}  Bxe5 {[%clk 0:02:56]} 14. Rc1 {[%clk 0:02:22]}  e6 {[%clk 0:02:46]} 15. c4 {[%clk 0:02:22]}  exd5 {[%clk 0:02:45]} 16. cxd5 {[%clk 0:02:21]}  b6 {[%clk 0:02:45]} 17. O-O {[%clk 0:02:17]}  Bb7 {[%clk 0:02:45]} 18. Be3 {[%clk 0:02:13]}  Re8 {[%clk 0:02:42]} 19. Qd3 {[%clk 0:02:03]}  f5 {[%clk 0:02:35]} 20. Qb3 {[%clk 0:01:45]}  fxe4 {[%clk 0:02:34]} 21. Bxc5 {[%clk 0:01:42]}  Bxd5 {[%clk 0:02:31]} 22. Bc4 {[%clk 0:01:41]}  Bxc4 {[%clk 0:02:30]} 23. Qxc4+ {[%clk 0:01:41]}  Kh8 {[%clk 0:02:30]} 24. Be3 {[%clk 0:01:39]}  Bg7 {[%clk 0:02:29]} 25. Rfd1 {[%clk 0:01:38]}  Qe7 {[%clk 0:02:28]} 26. a4 {[%clk 0:01:34]}  Rad8 {[%clk 0:02:26]} 27. Qb5 {[%clk 0:01:31]}  Qe6 {[%clk 0:02:21]} 28. a5 {[%clk 0:01:25]}  bxa5 {[%clk 0:02:19]} 29. Bxa7 {[%clk 0:01:26]}  Qa2 {[%clk 0:02:08]} 30. Bb6 {[%clk 0:01:21]}  Rxd1+ {[%clk 0:02:03]} 31. Rxd1 {[%clk 0:01:21]}  a4 {[%clk 0:02:02]} 32. Qxe8+ {[%clk 0:01:21]}  Qg8 {[%clk 0:01:59]} 33. Rd8 {[%clk 0:01:18]}  Bf8 {[%clk 0:01:54]} 34. Bd4+ {[%clk 0:01:17]}  Qg7 {[%clk 0:01:53]} 35. Qxf8# {[%clk 0:01:17]} 1-0


[Site "https://www.chess.com"]

[Event "Titled Tuesday Blitz February 07 Late 2023"]
[White "Suarez Uriel, Adrian"]
[Black "Bikuzhin, Maksim"]
[WhiteFideId "22230874"]
[BlackFideId "24128015"]
[WhiteElo "2356"]
[BlackElo "2279"]
[Result "0-1"]
[Round "02"]
[TimeControl "180+2"]
[Date "2023.02.07"]
[WhiteClock "0:00:08"]
[BlackClock "0:01:01"]

1. e4 {[%clk 0:03:00]}  c5 {[%clk 0:02:59]} 2. Nf3 {[%clk 0:03:00]}  e6 {[%clk 0:02:59]} 3. b3 {[%clk 0:03:00]}  a6 {[%clk 0:02:58]} 4. Bb2 {[%clk 0:02:59]}  b5 {[%clk 0:02:58]} 5. a4 {[%clk 0:02:57]}  b4 {[%clk 0:02:56]} 6. d4 {[%clk 0:02:57]}  cxd4 {[%clk 0:02:54]} 7. Nxd4 {[%clk 0:02:57]}  Bb7 {[%clk 0:02:51]} 8. Bd3 {[%clk 0:02:57]}  d6 {[%clk 0:02:49]} 9. O-O {[%clk 0:02:57]}  Nf6 {[%clk 0:02:46]} 10. Re1 {[%clk 0:02:57]}  Be7 {[%clk 0:02:44]} 11. a5 {[%clk 0:02:50]}  Qc7 {[%clk 0:02:42]} 12. Nd2 {[%clk 0:02:50]}  Nbd7 {[%clk 0:02:41]} 13. Nc4 {[%clk 0:02:50]}  O-O {[%clk 0:02:37]} 14. Qf3 {[%clk 0:02:48]}  Nc5 {[%clk 0:02:34]} 15. Qh3 {[%clk 0:02:45]}  g6 {[%clk 0:02:29]} 16. e5 {[%clk 0:02:41]}  dxe5 {[%clk 0:02:26]} 17. Nxe5 {[%clk 0:02:42]}  Nxd3 {[%clk 0:02:24]} 18. Nxd3 {[%clk 0:02:36]}  Rad8 {[%clk 0:02:19]} 19. Rad1 {[%clk 0:02:25]}  Rfe8 {[%clk 0:02:07]} 20. Nxe6 {[%clk 0:01:39]}  fxe6 {[%clk 0:02:06]} 21. Qxe6+ {[%clk 0:01:40]}  Kg7 {[%clk 0:02:04]} 22. Ne5 {[%clk 0:01:41]}  Bd6 {[%clk 0:01:56]} 23. Rxd6 {[%clk 0:00:59]}  Rxe6 {[%clk 0:01:50]} 24. Rxe6 {[%clk 0:00:58]}  Bd5 {[%clk 0:01:44]} 25. Rxa6 {[%clk 0:00:38]}  Qxc2 {[%clk 0:01:42]} 26. Ra7+ {[%clk 0:00:37]}  Kh6 {[%clk 0:01:38]} 27. Bc1+ {[%clk 0:00:37]}  Kh5 {[%clk 0:01:34]} 28. g4+ {[%clk 0:00:33]}  Kh4 {[%clk 0:01:31]} 29. Bf4 {[%clk 0:00:31]}  Qc3 {[%clk 0:01:25]} 30. Rc1 {[%clk 0:00:15]}  Qd4 {[%clk 0:01:21]} 31. Bg3+ {[%clk 0:00:12]}  Kh3 {[%clk 0:01:18]} 32. Rg7 {[%clk 0:00:11]}  Qe4 {[%clk 0:01:16]} 33. Kf1 {[%clk 0:00:10]}  Bb7 {[%clk 0:01:10]} 34. g5 {[%clk 0:00:08]}  Ba6+ {[%clk 0:01:02]} 35. Kg1 {[%clk 0:00:08]}  Qg2# {[%clk 0:01:01]} 0-1


[Site "https://www.chess.com"]

[Event "Titled Tuesday Blitz February 07 Late 2023"]
[White "Bozorov, Makhsum"]
[Black "Nasuta, Grzegorz"]
[WhiteFideId "14201330"]
[BlackFideId "1141686"]
[WhiteElo "2145"]
[BlackElo "2552"]
[Result "0-1"]
[Round "02"]
[TimeControl "180+2"]
[Date "2023.02.07"]
[WhiteClock "0:00:04"]
[BlackClock "0:00:09"]

1. e4 {[%clk 0:02:59]}  c5 {[%clk 0:02:59]} 2. Nf3 {[%clk 0:02:58]}  e6 {[%clk 0:02:59]} 3. c3 {[%clk 0:02:56]}  Nf6 {[%clk 0:02:58]} 4. e5 {[%clk 0:02:56]}  Nd5 {[%clk 0:02:59]} 5. g3 {[%clk 0:02:57]}  d6 {[%clk 0:02:58]} 6. exd6 {[%clk 0:02:56]}  Bxd6 {[%clk 0:02:58]} 7. Bg2 {[%clk 0:02:57]}  O-O {[%clk 0:02:57]} 8. O-O {[%clk 0:02:57]}  Nc6 {[%clk 0:02:58]} 9. d4 {[%clk 0:02:58]}  cxd4 {[%clk 0:02:57]} 10. Nxd4 {[%clk 0:02:59]}  Nxd4 {[%clk 0:02:57]} 11. Qxd4 {[%clk 0:03:00]}  Qc7 {[%clk 0:02:58]} 12. Nd2 {[%clk 0:03:00]}  Bc5 {[%clk 0:02:51]} 13. Qd3 {[%clk 0:02:49]}  Rd8 {[%clk 0:02:51]} 14. Qe2 {[%clk 0:02:50]}  Bd7 {[%clk 0:02:50]} 15. Ne4 {[%clk 0:02:50]}  Be7 {[%clk 0:02:50]} 16. c4 {[%clk 0:02:44]}  Nb4 {[%clk 0:02:43]} 17. Rd1 {[%clk 0:02:29]}  Be8 {[%clk 0:02:21]} 18. Be3 {[%clk 0:02:27]}  Rxd1+ {[%clk 0:02:16]} 19. Qxd1 {[%clk 0:02:05]}  Qxc4 {[%clk 0:02:13]} 20. Nd6 {[%clk 0:02:01]}  Bxd6 {[%clk 0:01:39]} 21. Qxd6 {[%clk 0:02:02]}  Bc6 {[%clk 0:01:40]} 22. Rc1 {[%clk 0:01:44]}  Qb5 {[%clk 0:01:38]} 23. a3 {[%clk 0:01:07]}  Bxg2 {[%clk 0:01:37]} 24. Qxb4 {[%clk 0:01:00]}  Qxb4 {[%clk 0:01:17]} 25. axb4 {[%clk 0:00:59]}  Bc6 {[%clk 0:01:17]} 26. Ra1 {[%clk 0:00:52]}  a6 {[%clk 0:01:16]} 27. Rd1 {[%clk 0:00:52]}  f6 {[%clk 0:01:14]} 28. f4 {[%clk 0:00:51]}  Kf7 {[%clk 0:01:15]} 29. Kf2 {[%clk 0:00:49]}  Rc8 {[%clk 0:01:14]} 30. h3 {[%clk 0:00:44]}  Be4 {[%clk 0:01:09]} 31. Rc1 {[%clk 0:00:42]}  Bc6 {[%clk 0:01:09]} 32. Rd1 {[%clk 0:00:42]}  h6 {[%clk 0:01:07]} 33. h4 {[%clk 0:00:41]}  Kg6 {[%clk 0:01:07]} 34. Ke1 {[%clk 0:00:36]}  Kf5 {[%clk 0:01:06]} 35. Kf2 {[%clk 0:00:37]}  Ke4 {[%clk 0:00:58]} 36. Rd4+ {[%clk 0:00:35]}  Kf5 {[%clk 0:00:58]} 37. Rd1 {[%clk 0:00:35]}  Re8 {[%clk 0:00:22]} 38. Bc5 {[%clk 0:00:32]}  e5 {[%clk 0:00:21]} 39. fxe5 {[%clk 0:00:32]}  fxe5 {[%clk 0:00:20]} 40. Rd6 {[%clk 0:00:25]}  Ke4 {[%clk 0:00:18]} 41. Rg6 {[%clk 0:00:20]}  Rg8 {[%clk 0:00:13]} 42. Bd6 {[%clk 0:00:14]}  Kf5 {[%clk 0:00:11]} 43. h5 {[%clk 0:00:12]}  Be8 {[%clk 0:00:11]} 44. g4+ {[%clk 0:00:09]}  Kf4 {[%clk 0:00:12]} 45. Re6 {[%clk 0:00:09]}  Kxg4 {[%clk 0:00:12]} 46. Rxe5 {[%clk 0:00:09]}  Bxh5 {[%clk 0:00:12]} 47. Re7 {[%clk 0:00:10]}  b5 {[%clk 0:00:11]} 48. Be5 {[%clk 0:00:09]}  g5 {[%clk 0:00:08]} 49. Bd4 {[%clk 0:00:07]}  Bg6 {[%clk 0:00:07]} 50. Rc7 {[%clk 0:00:06]}  h5 {[%clk 0:00:07]} 51. Be5 {[%clk 0:00:05]}  h4 {[%clk 0:00:07]} 52. Rc3 {[%clk 0:00:05]}  Be4 {[%clk 0:00:07]} 53. Re3 {[%clk 0:00:05]}  Kf5 {[%clk 0:00:07]} 54. Bd6 {[%clk 0:00:05]}  g4 {[%clk 0:00:08]} 55. Be7 {[%clk 0:00:04]}  g3+ {[%clk 0:00:08]} 56. Kg1 {[%clk 0:00:05]}  h3 {[%clk 0:00:08]} 57. Bd6 {[%clk 0:00:04]}  h2+ {[%clk 0:00:09]} 0-1


[Site "https://www.chess.com"]

[Event "Titled Tuesday Blitz February 07 Late 2023"]
[White "Haydon, David L"]
[Black "Kostiukov, Alexandr"]
[WhiteFideId "415405"]
[BlackFideId "14108100"]
[WhiteElo "2253"]
[BlackElo "2271"]
[Result "1-0"]
[Round "02"]
[TimeControl "180+2"]
[Date "2023.02.07"]
[WhiteClock "0:00:38"]
[BlackClock "0:00:05"]

1. d4 {[%clk 0:03:00]}  g6 {[%clk 0:02:52]} 2. c4 {[%clk 0:03:00]}  Bg7 {[%clk 0:02:53]} 3. Nf3 {[%clk 0:03:00]}  d6 {[%clk 0:02:53]} 4. g3 {[%clk 0:03:00]}  e5 {[%clk 0:02:53]} 5. Nc3 {[%clk 0:02:59]}  exd4 {[%clk 0:02:52]} 6. Nxd4 {[%clk 0:02:59]}  Nc6 {[%clk 0:02:52]} 7. Nxc6 {[%clk 0:02:59]}  bxc6 {[%clk 0:02:53]} 8. Bg2 {[%clk 0:02:59]}  Ne7 {[%clk 0:02:53]} 9. O-O {[%clk 0:02:59]}  Rb8 {[%clk 0:02:52]} 10. Qc2 {[%clk 0:02:59]}  O-O {[%clk 0:02:51]} 11. b3 {[%clk 0:02:57]}  Bf5 {[%clk 0:02:46]} 12. e4 {[%clk 0:02:55]}  Be6 {[%clk 0:02:46]} 13. Rd1 {[%clk 0:02:54]}  c5 {[%clk 0:02:45]} 14. Bb2 {[%clk 0:02:52]}  Nc6 {[%clk 0:02:45]} 15. Ne2 {[%clk 0:02:52]}  Bxb2 {[%clk 0:02:39]} 16. Qxb2 {[%clk 0:02:51]}  Bxc4 {[%clk 0:02:38]} 17. Nf4 {[%clk 0:02:51]}  Be6 {[%clk 0:02:25]} 18. h4 {[%clk 0:02:44]}  Nd4 {[%clk 0:02:10]} 19. h5 {[%clk 0:02:40]}  Qf6 {[%clk 0:02:05]} 20. Rd2 {[%clk 0:02:33]}  g5 {[%clk 0:01:59]} 21. Ne2 {[%clk 0:02:23]}  Nxe2+ {[%clk 0:01:58]} 22. Rxe2 {[%clk 0:02:23]}  Qxb2 {[%clk 0:01:57]} 23. Rxb2 {[%clk 0:02:22]}  g4 {[%clk 0:01:50]} 24. h6 {[%clk 0:02:18]}  Rb4 {[%clk 0:01:49]} 25. Rc2 {[%clk 0:02:16]}  Rfb8 {[%clk 0:01:48]} 26. e5 {[%clk 0:02:15]}  Kf8 {[%clk 0:01:44]} 27. Rd1 {[%clk 0:02:14]}  Ke7 {[%clk 0:01:44]} 28. Bf1 {[%clk 0:02:06]}  a5 {[%clk 0:01:39]} 29. Bd3 {[%clk 0:01:59]}  a4 {[%clk 0:01:34]} 30. bxa4 {[%clk 0:01:57]}  Rxa4 {[%clk 0:01:34]} 31. Bxh7 {[%clk 0:01:55]}  Rh8 {[%clk 0:01:34]} 32. exd6+ {[%clk 0:01:49]}  cxd6 {[%clk 0:01:33]} 33. Bd3 {[%clk 0:01:49]}  Rxh6 {[%clk 0:01:25]} 34. Re1 {[%clk 0:01:44]}  Kf6 {[%clk 0:01:21]} 35. Be4 {[%clk 0:01:40]}  Rh5 {[%clk 0:00:54]} 36. Bc6 {[%clk 0:01:35]}  Rd4 {[%clk 0:00:39]} 37. a4 {[%clk 0:01:25]}  Bb3 {[%clk 0:00:33]} 38. Rb2 {[%clk 0:01:01]}  Bxa4 {[%clk 0:00:28]} 39. Bg2 {[%clk 0:01:00]}  c4 {[%clk 0:00:25]} 40. Rb4 {[%clk 0:00:59]}  Ra5 {[%clk 0:00:24]} 41. Bf1 {[%clk 0:00:53]}  Bb3 {[%clk 0:00:24]} 42. Rb1 {[%clk 0:00:50]}  Rad5 {[%clk 0:00:22]} 43. Kh2 {[%clk 0:00:44]}  Rh5+ {[%clk 0:00:14]} 44. Kg1 {[%clk 0:00:44]}  Rhd5 {[%clk 0:00:13]} 45. Kh2 {[%clk 0:00:43]}  Ke5 {[%clk 0:00:11]} 46. Bg2 {[%clk 0:00:43]}  Rd1 {[%clk 0:00:05]} 47. Bxd5 {[%clk 0:00:38]} 1-0


[Site "https://www.chess.com"]

[Event "Titled Tuesday Blitz February 07 Late 2023"]
[White "Romanchuk, Viktor"]
[Black "Bernat, David"]
[WhiteFideId "14109271"]
[BlackFideId "2099225"]
[WhiteElo "2266"]
[BlackElo "1862"]
[Result "1-0"]
[Round "02"]
[TimeControl "180+2"]
[Date "2023.02.07"]
[WhiteClock "0:00:57"]
[BlackClock "0:00:04"]

1. d4 {[%clk 0:03:00]}  d5 {[%clk 0:02:56]} 2. c4 {[%clk 0:03:00]}  e5 {[%clk 0:02:56]} 3. dxe5 {[%clk 0:02:59]}  d4 {[%clk 0:02:57]} 4. Nf3 {[%clk 0:02:59]}  Nc6 {[%clk 0:02:58]} 5. Nbd2 {[%clk 0:02:59]}  Nge7 {[%clk 0:02:58]} 6. Nb3 {[%clk 0:02:58]}  Nf5 {[%clk 0:02:59]} 7. e4 {[%clk 0:02:57]}  dxe3 {[%clk 0:02:56]} 8. Qxd8+ {[%clk 0:02:58]}  Nxd8 {[%clk 0:02:56]} 9. fxe3 {[%clk 0:02:59]}  Nc6 {[%clk 0:02:56]} 10. Bd2 {[%clk 0:02:58]}  a5 {[%clk 0:02:39]} 11. Kf2 {[%clk 0:02:56]}  Be6 {[%clk 0:02:34]} 12. Bc3 {[%clk 0:02:51]}  a4 {[%clk 0:02:27]} 13. Nbd4 {[%clk 0:02:48]}  Bc5 {[%clk 0:02:23]} 14. Nxf5 {[%clk 0:02:37]}  Bxf5 {[%clk 0:02:22]} 15. Nd4 {[%clk 0:02:37]}  Bg6 {[%clk 0:02:13]} 16. Nxc6 {[%clk 0:02:22]}  bxc6 {[%clk 0:02:13]} 17. Rd1 {[%clk 0:02:18]}  O-O {[%clk 0:01:47]} 18. Be2 {[%clk 0:02:18]}  Rad8 {[%clk 0:01:32]} 19. Rxd8 {[%clk 0:02:16]}  Rxd8 {[%clk 0:01:30]} 20. Rd1 {[%clk 0:02:17]}  Rxd1 {[%clk 0:01:30]} 21. Bxd1 {[%clk 0:02:17]}  Bd3 {[%clk 0:01:25]} 22. Bxa4 {[%clk 0:02:16]}  Bxc4 {[%clk 0:01:24]} 23. a3 {[%clk 0:02:16]}  Bd5 {[%clk 0:01:16]} 24. Bd4 {[%clk 0:02:10]}  Bb6 {[%clk 0:01:09]} 25. b4 {[%clk 0:02:06]}  Kf8 {[%clk 0:01:06]} 26. Bc2 {[%clk 0:02:01]}  h6 {[%clk 0:01:05]} 27. a4 {[%clk 0:02:01]}  c5 {[%clk 0:00:52]} 28. Bxc5+ {[%clk 0:01:55]}  Bxc5 {[%clk 0:00:52]} 29. bxc5 {[%clk 0:01:56]}  Ke7 {[%clk 0:00:52]} 30. Bf5 {[%clk 0:01:52]}  g6 {[%clk 0:00:35]} 31. Bh3 {[%clk 0:01:50]}  Bc6 {[%clk 0:00:29]} 32. a5 {[%clk 0:01:48]}  Bb5 {[%clk 0:00:29]} 33. Ke1 {[%clk 0:01:44]}  Kd8 {[%clk 0:00:27]} 34. Kd2 {[%clk 0:01:42]}  c6 {[%clk 0:00:27]} 35. g3 {[%clk 0:01:38]}  Kc7 {[%clk 0:00:27]} 36. Kc3 {[%clk 0:01:37]}  h5 {[%clk 0:00:21]} 37. Bg2 {[%clk 0:01:26]}  Kd7 {[%clk 0:00:20]} 38. Bh3+ {[%clk 0:01:25]}  Kc7 {[%clk 0:00:20]} 39. Kd4 {[%clk 0:01:22]}  g5 {[%clk 0:00:20]} 40. Bf5 {[%clk 0:01:18]}  Kb7 {[%clk 0:00:18]} 41. Kc3 {[%clk 0:01:15]}  Ka6 {[%clk 0:00:10]} 42. Kb4 {[%clk 0:01:14]}  Kb7 {[%clk 0:00:09]} 43. h4 {[%clk 0:01:12]}  gxh4 {[%clk 0:00:08]} 44. gxh4 {[%clk 0:01:11]}  Kc7 {[%clk 0:00:07]} 45. Kc3 {[%clk 0:01:10]}  Kb7 {[%clk 0:00:07]} 46. e6 {[%clk 0:01:07]}  fxe6 {[%clk 0:00:07]} 47. Bxe6 {[%clk 0:01:06]}  Ka6 {[%clk 0:00:07]} 48. Kb4 {[%clk 0:01:05]}  Kb7 {[%clk 0:00:07]} 49. Bf7 {[%clk 0:01:04]}  Be2 {[%clk 0:00:07]} 50. e4 {[%clk 0:01:01]}  Bg4 {[%clk 0:00:06]} 51. e5 {[%clk 0:01:00]}  Be2 {[%clk 0:00:04]} 52. e6 {[%clk 0:00:57]} 1-0


[Site "https://www.chess.com"]

[Event "Titled Tuesday Blitz February 07 Late 2023"]
[White "Defend, Balint"]
[Black "Guzman Moneo, Alberto"]
[WhiteFideId "17004853"]
[BlackFideId "2209616"]
[WhiteElo "1673"]
[BlackElo "2170"]
[Result "1/2-1/2"]
[Round "02"]
[TimeControl "180+2"]
[Date "2023.02.07"]
[WhiteClock "0:00:16"]
[BlackClock "0:00:11"]

1. e4 {[%clk 0:03:00]}  c5 {[%clk 0:02:59]} 2. Nf3 {[%clk 0:03:01]}  Nc6 {[%clk 0:02:59]} 3. Bb5 {[%clk 0:03:01]}  Nf6 {[%clk 0:02:57]} 4. e5 {[%clk 0:03:01]}  Nd5 {[%clk 0:02:57]} 5. c4 {[%clk 0:03:01]}  Nc7 {[%clk 0:02:57]} 6. Ba4 {[%clk 0:03:01]}  g6 {[%clk 0:02:54]} 7. O-O {[%clk 0:03:00]}  Bg7 {[%clk 0:02:55]} 8. Re1 {[%clk 0:03:00]}  O-O {[%clk 0:02:54]} 9. b3 {[%clk 0:03:00]}  a6 {[%clk 0:02:53]} 10. Bxc6 {[%clk 0:02:59]}  dxc6 {[%clk 0:02:54]} 11. Bb2 {[%clk 0:02:59]}  Bg4 {[%clk 0:02:50]} 12. h3 {[%clk 0:02:57]}  Bxf3 {[%clk 0:02:50]} 13. Qxf3 {[%clk 0:02:58]}  Ne6 {[%clk 0:02:51]} 14. Re4 {[%clk 0:02:52]}  Ng5 {[%clk 0:02:48]} 15. Qe3 {[%clk 0:02:52]}  Nxe4 {[%clk 0:02:47]} 16. Qxe4 {[%clk 0:02:53]}  Qd7 {[%clk 0:02:34]} 17. Qe3 {[%clk 0:02:43]}  b6 {[%clk 0:02:32]} 18. Nc3 {[%clk 0:02:39]}  Rfd8 {[%clk 0:02:26]} 19. Ne4 {[%clk 0:02:38]}  Qd3 {[%clk 0:02:22]} 20. Qf4 {[%clk 0:02:36]}  Qc2 {[%clk 0:02:18]} 21. Bc3 {[%clk 0:02:36]}  h6 {[%clk 0:02:13]} 22. h4 {[%clk 0:02:35]}  Rd3 {[%clk 0:02:07]} 23. h5 {[%clk 0:02:34]}  g5 {[%clk 0:02:07]} 24. Qg4 {[%clk 0:02:30]}  Rxc3 {[%clk 0:01:41]} 25. dxc3 {[%clk 0:02:24]}  Rd8 {[%clk 0:01:38]} 26. Re1 {[%clk 0:02:17]}  Bxe5 {[%clk 0:01:26]} 27. Nxg5 {[%clk 0:02:16]}  hxg5 {[%clk 0:01:26]} 28. Qxg5+ {[%clk 0:02:17]}  Bg7 {[%clk 0:01:25]} 29. h6 {[%clk 0:02:17]}  Qxc3 {[%clk 0:01:16]} 30. Rxe7 {[%clk 0:01:50]}  Qf6 {[%clk 0:00:56]} 31. Qxg7+ {[%clk 0:01:48]}  Qxg7 {[%clk 0:00:56]} 32. hxg7 {[%clk 0:01:49]}  Rd1+ {[%clk 0:00:56]} 33. Kh2 {[%clk 0:01:49]}  Rd2 {[%clk 0:00:57]} 34. Rb7 {[%clk 0:01:36]}  Rxf2 {[%clk 0:00:53]} 35. Rxb6 {[%clk 0:01:29]}  Rxa2 {[%clk 0:00:53]} 36. Rxc6 {[%clk 0:01:27]}  Ra3 {[%clk 0:00:52]} 37. Rb6 {[%clk 0:01:23]}  Kxg7 {[%clk 0:00:50]} 38. Kg3 {[%clk 0:01:20]}  a5 {[%clk 0:00:49]} 39. Kf4 {[%clk 0:01:17]}  a4 {[%clk 0:00:46]} 40. Ra6 {[%clk 0:01:04]}  Rxb3 {[%clk 0:00:43]} 41. Rxa4 {[%clk 0:01:03]}  Rb4 {[%clk 0:00:35]} 42. Rxb4 {[%clk 0:00:54]}  cxb4 {[%clk 0:00:36]} 43. Ke4 {[%clk 0:00:52]}  Kf6 {[%clk 0:00:36]} 44. Kd4 {[%clk 0:00:47]}  Ke6 {[%clk 0:00:20]} 45. c5 {[%clk 0:00:46]}  b3 {[%clk 0:00:19]} 46. Kc3 {[%clk 0:00:44]}  Kd5 {[%clk 0:00:19]} 47. Kxb3 {[%clk 0:00:43]}  Kxc5 {[%clk 0:00:20]} 48. Kc3 {[%clk 0:00:43]}  Kd5 {[%clk 0:00:20]} 49. Kd3 {[%clk 0:00:40]}  Ke5 {[%clk 0:00:20]} 50. Ke3 {[%clk 0:00:40]}  Kf5 {[%clk 0:00:20]} 51. Kf3 {[%clk 0:00:40]}  Kg5 {[%clk 0:00:21]} 52. Kg3 {[%clk 0:00:40]}  Kf5 {[%clk 0:00:20]} 53. Kf3 {[%clk 0:00:41]}  Kg5 {[%clk 0:00:20]} 54. Kg3 {[%clk 0:00:34]}  Kf5 {[%clk 0:00:19]} 55. Kh4 {[%clk 0:00:35]}  f6 {[%clk 0:00:17]} 56. g3 {[%clk 0:00:19]}  Kg6 {[%clk 0:00:09]} 57. Kg4 {[%clk 0:00:19]}  f5+ {[%clk 0:00:09]} 58. Kf4 {[%clk 0:00:17]}  Kf6 {[%clk 0:00:09]} 59. Ke3 {[%clk 0:00:17]}  Kg5 {[%clk 0:00:10]} 60. Kf3 {[%clk 0:00:18]}  Kg6 {[%clk 0:00:10]} 61. Kg2 {[%clk 0:00:18]}  Kg5 {[%clk 0:00:10]} 62. Kh2 {[%clk 0:00:16]}  f4 {[%clk 0:00:10]} 63. gxf4+ {[%clk 0:00:16]}  Kxf4 {[%clk 0:00:11]} 1/2-1/2


[Site "https://www.chess.com"]

[Event "Titled Tuesday Blitz February 07 Late 2023"]
[White "Ozates, Tuna"]
[Black "Balog, Imre"]
[WhiteFideId "6354521"]
[BlackFideId "728446"]
[WhiteElo "2251"]
[BlackElo "2615"]
[Result "1/2-1/2"]
[Round "02"]
[TimeControl "180+2"]
[Date "2023.02.07"]
[WhiteClock "0:01:24"]
[BlackClock "0:00:04"]

1. e4 {[%clk 0:03:00]}  c5 {[%clk 0:02:59]} 2. Nf3 {[%clk 0:03:00]}  Nc6 {[%clk 0:02:57]} 3. Bb5 {[%clk 0:02:57]}  e6 {[%clk 0:02:50]} 4. Bxc6 {[%clk 0:02:51]}  bxc6 {[%clk 0:02:51]} 5. b3 {[%clk 0:02:50]}  Be7 {[%clk 0:02:39]} 6. Bb2 {[%clk 0:02:49]}  f6 {[%clk 0:02:35]} 7. e5 {[%clk 0:02:48]}  fxe5 {[%clk 0:02:24]} 8. Nxe5 {[%clk 0:02:48]}  Nf6 {[%clk 0:02:23]} 9. O-O {[%clk 0:02:48]}  O-O {[%clk 0:02:19]} 10. c4 {[%clk 0:02:46]}  a5 {[%clk 0:02:04]} 11. Nc3 {[%clk 0:02:42]}  Qc7 {[%clk 0:01:50]} 12. d4 {[%clk 0:02:41]}  cxd4 {[%clk 0:01:43]} 13. Qxd4 {[%clk 0:02:42]}  c5 {[%clk 0:01:41]} 14. Qe3 {[%clk 0:02:37]}  Bd6 {[%clk 0:01:25]} 15. Nb5 {[%clk 0:02:37]}  Qb8 {[%clk 0:01:08]} 16. Rad1 {[%clk 0:02:36]}  Bxe5 {[%clk 0:00:49]} 17. Bxe5 {[%clk 0:02:37]}  Ng4 {[%clk 0:00:48]} 18. Bxb8 {[%clk 0:02:33]}  Nxe3 {[%clk 0:00:47]} 19. fxe3 {[%clk 0:02:31]}  Rxf1+ {[%clk 0:00:45]} 20. Kxf1 {[%clk 0:02:28]}  Rxb8 {[%clk 0:00:44]} 21. Rd6 {[%clk 0:02:25]}  Kf8 {[%clk 0:00:41]} 22. Ke2 {[%clk 0:02:22]}  Ke7 {[%clk 0:00:41]} 23. a4 {[%clk 0:02:17]}  Rxb5 {[%clk 0:00:40]} 24. Rxe6+ {[%clk 0:02:03]}  Kxe6 {[%clk 0:00:37]} 25. cxb5 {[%clk 0:02:04]}  Bb7 {[%clk 0:00:37]} 26. g3 {[%clk 0:02:04]}  Bd5 {[%clk 0:00:37]} 27. Kd3 {[%clk 0:02:01]}  Bxb3 {[%clk 0:00:36]} 28. b6 {[%clk 0:02:01]}  Bd5 {[%clk 0:00:36]} 29. e4 {[%clk 0:02:01]}  Bb7 {[%clk 0:00:35]} 30. Kc4 {[%clk 0:02:02]}  Kd6 {[%clk 0:00:30]} 31. Kb5 {[%clk 0:02:01]}  Bxe4 {[%clk 0:00:23]} 32. Kxa5 {[%clk 0:01:59]}  c4 {[%clk 0:00:19]} 33. Kb4 {[%clk 0:01:51]}  Bd5 {[%clk 0:00:19]} 34. a5 {[%clk 0:01:50]}  Kc6 {[%clk 0:00:19]} 35. g4 {[%clk 0:01:45]}  Bf3 {[%clk 0:00:18]} 36. Kxc4 {[%clk 0:01:40]}  Bxg4 {[%clk 0:00:17]} 37. Kd4 {[%clk 0:01:40]}  Be6 {[%clk 0:00:17]} 38. Ke5 {[%clk 0:01:40]}  Bf7 {[%clk 0:00:17]} 39. h4 {[%clk 0:01:39]}  d5 {[%clk 0:00:17]} 40. Kd4 {[%clk 0:01:37]}  h6 {[%clk 0:00:16]} 41. Ke5 {[%clk 0:01:36]}  g5 {[%clk 0:00:15]} 42. hxg5 {[%clk 0:01:36]}  hxg5 {[%clk 0:00:14]} 43. Kf5 {[%clk 0:01:37]}  d4 {[%clk 0:00:13]} 44. Ke4 {[%clk 0:01:37]}  d3 {[%clk 0:00:05]} 45. Kxd3 {[%clk 0:01:37]}  Be6 {[%clk 0:00:04]} 46. Ke4 {[%clk 0:01:36]}  g4 {[%clk 0:00:04]} 47. Kf4 {[%clk 0:01:35]}  Bc8 {[%clk 0:00:05]} 48. Kg3 {[%clk 0:01:32]}  Kd5 {[%clk 0:00:04]} 49. a6 {[%clk 0:01:23]}  Bxa6 {[%clk 0:00:03]} 50. Kxg4 {[%clk 0:01:24]}  Kc6 {[%clk 0:00:03]} 51. Kf5 {[%clk 0:01:24]}  Kxb6 {[%clk 0:00:04]} 1/2-1/2


[Site "https://www.chess.com"]

[Event "Titled Tuesday Blitz February 07 Late 2023"]
[White "Ansh M Shah"]
[Black "Ozen, Bahadir"]
[WhiteFideId "25033379"]
[BlackFideId "6337058"]
[WhiteElo "2171"]
[BlackElo "2369"]
[Result "1/2-1/2"]
[Round "02"]
[TimeControl "180+2"]
[Date "2023.02.07"]
[WhiteClock "0:01:57"]
[BlackClock "0:01:20"]

1. d4 {[%clk 0:03:00]}  g6 {[%clk 0:02:54]} 2. c4 {[%clk 0:03:01]}  Bg7 {[%clk 0:02:54]} 3. Nc3 {[%clk 0:02:58]}  Nf6 {[%clk 0:02:55]} 4. h4 {[%clk 0:02:57]}  c5 {[%clk 0:02:52]} 5. d5 {[%clk 0:02:57]}  O-O {[%clk 0:02:50]} 6. e4 {[%clk 0:02:57]}  d6 {[%clk 0:02:48]} 7. Be2 {[%clk 0:02:56]}  e6 {[%clk 0:02:48]} 8. h5 {[%clk 0:02:57]}  exd5 {[%clk 0:02:45]} 9. exd5 {[%clk 0:02:58]}  Bf5 {[%clk 0:02:31]} 10. g4 {[%clk 0:02:38]}  Bd7 {[%clk 0:02:28]} 11. g5 {[%clk 0:02:38]}  Ne8 {[%clk 0:02:26]} 12. h6 {[%clk 0:02:38]}  Bxc3+ {[%clk 0:01:59]} 13. bxc3 {[%clk 0:02:36]}  Qa5 {[%clk 0:02:00]} 14. Bd2 {[%clk 0:02:34]}  Ba4 {[%clk 0:01:59]} 15. Qc1 {[%clk 0:02:30]}  Nd7 {[%clk 0:01:58]} 16. Nf3 {[%clk 0:02:17]}  Nb6 {[%clk 0:01:44]} 17. Bf4 {[%clk 0:02:10]}  Qa6 {[%clk 0:01:43]} 18. Nd2 {[%clk 0:02:10]}  f5 {[%clk 0:01:35]} 19. O-O {[%clk 0:02:06]}  Rd8 {[%clk 0:01:35]} 20. Re1 {[%clk 0:02:00]}  Rf7 {[%clk 0:01:19]} 21. Bf1 {[%clk 0:01:57]}  Nc7 {[%clk 0:01:20]} 1/2-1/2


[Site "https://www.chess.com"]